{"text_format":"2","workbook":"xlsx","n_sheets":7,"sheets":["complete list","DENVER-MASONIC LODGE","DENVER-CRRG","ELIZABETH","CENTENNIAL","GREELEY","LONGMONT"],"not_rendered":{"charts":0,"images":0,"macros":0,"external_links":0,"defined_names":8,"comments":0,"pivot_tables":0},"unopened":[],"bounds":{"document_bytes":16777216,"sheet_cells":100000,"run_cost":"one","rows_first":2000,"rows_last":500,"rows_between":2000,"halvings":0,"cell_chars":16384,"cell_head_chars":4096},"cells_cut":0,"cells_raw":0,"read":"whole","date_system":"1900"}

{"sheet":"complete list","index":0,"n_rows":62,"n_cols":9,"rows_kept":62,"cut":false,"hidden":false,"merged":[]}
["DATE","DAY","TIME","LOCATION","STREET","CITY","STATE","ZIP","WALK-IN"]
[{"$f":"'DENVER-CRRG'!A6:I6","v":"2025-01-09"},"Thursday","6.30pm","DenHac /CARBBN w/Patriot VE Team","700 Kalamath St","Denver","CO",80204,"NO"]
[{"$f":"'DENVER-CRRG'!A7:I7","v":"2025-02-06"},"Thursday","6.30pm","DenHac /CARBBN w/Patriot VE Team","700 Kalamath St","Denver","CO",80204,"NO"]
[{"$f":"'DENVER-CRRG'!A8:I8","v":"2025-03-06"},"Thursday","6.30pm","DenHac /CARBBN w/Patriot VE Team","700 Kalamath St","Denver","CO",80204,"NO"]
[{"$f":"'DENVER-CRRG'!A9:I9","v":"2025-04-03"},"Thursday","6.30pm","DenHac /CARBBN w/Patriot VE Team","700 Kalamath St","Denver","CO",80204,"NO"]
[{"$f":"'DENVER-CRRG'!A10:I10","v":"2025-05-01"},"Thursday","6.30pm","DenHac /CARBBN w/Patriot VE Team","700 Kalamath St","Denver","CO",80204,"NO"]
[{"$f":"'DENVER-CRRG'!A11:I11","v":"2025-06-05"},"Thursday","6.30pm","DenHac /CARBBN w/Patriot VE Team","700 Kalamath St","Denver","CO",80204,"NO"]
[{"$f":"'DENVER-CRRG'!A12:I12","v":"2025-07-10"},"Thursday","6.30pm","DenHac /CARBBN w/Patriot VE Team","700 Kalamath St","Denver","CO",80204,"NO"]
[{"$f":"'DENVER-CRRG'!A13:I13","v":"2025-08-07"},"Thursday","6.30pm","DenHac /CARBBN w/Patriot VE Team","700 Kalamath St","Denver","CO",80204,"NO"]
[{"$f":"'DENVER-CRRG'!A14:I14","v":"2025-09-04"},"Thursday","6.30pm","DenHac /CARBBN w/Patriot VE Team","700 Kalamath St","Denver","CO",80204,"NO"]
[{"$f":"'DENVER-CRRG'!A15:I15","v":"2025-10-02"},"Thursday","6.30pm","DenHac /CARBBN w/Patriot VE Team","700 Kalamath St","Denver","CO",80204,"NO"]
[{"$f":"'DENVER-CRRG'!A16:I16","v":"2025-11-06"},"Thursday","6.30pm","DenHac /CARBBN w/Patriot VE Team","700 Kalamath St","Denver","CO",80204,"NO"]
[{"$f":"'DENVER-CRRG'!A17:I17","v":"2025-12-04"},"Thursday","6.30pm","DenHac /CARBBN w/Patriot VE Team","700 Kalamath St","Denver","CO",80204,"NO"]
[{"$f":"'DENVER-MASONIC LODGE'!A7:I7","v":"2026-01-04"},"Sunday","9am","Denver South Masonic Lodge","350 S Broadway ","Denver","CO",80209,"YES"]
[{"$f":"LONGMONT!A7","v":"2026-01-24"},{"$f":"LONGMONT!B7","v":"Saturday"},{"$f":"LONGMONT!C7","v":"9am"},{"$f":"LONGMONT!D7","v":"Clover Building, Boulder Co Fairgrounds, Clover Building w/Longmont ARC"},{"$f":"LONGMONT!E7","v":"9595 Nelson Rd"},{"$f":"LONGMONT!F7","v":"Longmont"},{"$f":"LONGMONT!G7","v":"CO"},{"$f":"LONGMONT!H7","v":80501},{"$f":"LONGMONT!I7","v":"YES"}]
[{"$f":"CENTENNIAL!A7:I7","v":"2026-01-26"},"Monday","7pm","Able Shepherd","7147 S Tuscon Way","Centennial","CO",80113,"NO"]
[{"$f":"CENTENNIAL!A7:I7","v":"2026-01-26"},"Monday","7pm","Able Shepherd","7147 S Tuscon Way","Centennial","CO",80113,"NO"]
[{"$f":"ELIZABETH!A7","v":"2026-02-15"},{"$f":"ELIZABETH!B7","v":"Sunday"},{"$f":"ELIZABETH!C7","v":"1pm"},{"$f":"ELIZABETH!D7","v":"American Legion Post 82"},{"$f":"ELIZABETH!E7","v":"228 S Banner St"},{"$f":"ELIZABETH!F7","v":"Elizabeth"},{"$f":"ELIZABETH!G7","v":"CO"},{"$f":"ELIZABETH!H7","v":80107},{"$f":"ELIZABETH!I7","v":"YES"}]
[{"$f":"CENTENNIAL!A8:I8","v":"2026-02-23"},"Monday","7pm","Able Shepherd","7148 S Tuscon Way","Centennial","CO",80114,"NO"]
[{"$f":"GREELEY!A6:I6","v":"2026-02-28"},"Saturday","9.30am","Weld ARC w/Patriot VE Team","361 71st Ave","Greeley","CO",80634,"YES"]
[{"$f":"'DENVER-MASONIC LODGE'!A8:I8","v":"2026-03-01"},"Sunday","9am","TBD","TBD","Sheridan","CO",80110,"YES"]
[{"$f":"ELIZABETH!A8","v":"2026-03-15"},{"$f":"ELIZABETH!B8","v":"Sunday"},{"$f":"ELIZABETH!C8","v":"1pm"},{"$f":"ELIZABETH!D8","v":"American Legion Post 82"},{"$f":"ELIZABETH!E8","v":"228 S Banner St"},{"$f":"ELIZABETH!F8","v":"Elizabeth"},{"$f":"ELIZABETH!G8","v":"CO"},{"$f":"ELIZABETH!H8","v":80107},{"$f":"ELIZABETH!I8","v":"YES"}]
[{"$f":"LONGMONT!A8","v":"2026-03-28"},{"$f":"LONGMONT!B8","v":"Saturday"},{"$f":"LONGMONT!C8","v":"9am"},{"$f":"LONGMONT!D8","v":"Clover Building, Boulder Co Fairgrounds, Clover Building w/Longmont ARC"},{"$f":"LONGMONT!E8","v":"9595 Nelson Rd"},{"$f":"LONGMONT!F8","v":"Longmont"},{"$f":"LONGMONT!G8","v":"CO"},{"$f":"LONGMONT!H8","v":80501},{"$f":"LONGMONT!I8","v":"YES"}]
[{"$f":"CENTENNIAL!A9:I9","v":"2026-03-30"},"Monday","7pm","Able Shepherd","7149 S Tuscon Way","Centennial","CO",80115,"NO"]
[{"$f":"LONGMONT!A9","v":"2026-04-04"},{"$f":"LONGMONT!B9","v":"Saturday"},{"$f":"LONGMONT!C9","v":"10am"},{"$f":"LONGMONT!D9","v":"LARCFEST, Boulder Co Fairgrounds"},{"$f":"LONGMONT!E9","v":"9595 Nelson Rd"},{"$f":"LONGMONT!F9","v":"Longmont"},{"$f":"LONGMONT!G9","v":"CO"},{"$f":"LONGMONT!H9","v":80501},{"$f":"LONGMONT!I9","v":"YES"}]
[{"$f":"'DENVER-MASONIC LODGE'!A9:I9","v":"2026-04-12"},"Sunday","9am","TBD","TBD","Sheridan","CO",80110,"YES"]
[{"$f":"ELIZABETH!A9","v":"2026-04-19"},{"$f":"ELIZABETH!B9","v":"Sunday"},{"$f":"ELIZABETH!C9","v":"1pm"},{"$f":"ELIZABETH!D9","v":"American Legion Post 82"},{"$f":"ELIZABETH!E9","v":"228 S Banner St"},{"$f":"ELIZABETH!F9","v":"Elizabeth"},{"$f":"ELIZABETH!G9","v":"CO"},{"$f":"ELIZABETH!H9","v":80107},{"$f":"ELIZABETH!I9","v":"YES"}]
[{"$f":"GREELEY!A7:I7","v":"2026-04-25"},"Saturday","9.30am","Weld ARC w/Patriot VE Team","361 71st Ave","Greeley","CO",80634,"YES"]
[{"$f":"CENTENNIAL!A10:I10","v":"2026-04-27"},"Monday","7pm","Able Shepherd","7150 S Tuscon Way","Centennial","CO",80116,"NO"]
[{"$f":"'DENVER-MASONIC LODGE'!A10:I10","v":"2026-05-03"},"Sunday","9am","TBD","TBD","Sheridan","CO",80110,"YES"]
[{"$f":"ELIZABETH!A10","v":"2026-05-17"},{"$f":"ELIZABETH!B10","v":"Sunday"},{"$f":"ELIZABETH!C10","v":"1pm"},{"$f":"ELIZABETH!D10","v":"American Legion Post 82"},{"$f":"ELIZABETH!E10","v":"228 S Banner St"},{"$f":"ELIZABETH!F10","v":"Elizabeth"},{"$f":"ELIZABETH!G10","v":"CO"},{"$f":"ELIZABETH!H10","v":80107},{"$f":"ELIZABETH!I10","v":"YES"}]
[{"$f":"CENTENNIAL!A11:I11","v":"2026-05-18"},"Monday","7pm","Able Shepherd","7151 S Tuscon Way","Centennial","CO",80117,"NO"]
[{"$f":"LONGMONT!A10","v":"2026-05-23"},{"$f":"LONGMONT!B10","v":"Saturday"},{"$f":"LONGMONT!C10","v":"9am"},{"$f":"LONGMONT!D10","v":"Clover Building, Boulder Co Fairgrounds, Clover Building w/Longmont ARC"},{"$f":"LONGMONT!E10","v":"9595 Nelson Rd"},{"$f":"LONGMONT!F10","v":"Longmont"},{"$f":"LONGMONT!G10","v":"CO"},{"$f":"LONGMONT!H10","v":80501},{"$f":"LONGMONT!I10","v":"YES"}]
[{"$f":"'DENVER-MASONIC LODGE'!A11:I11","v":"2026-06-07"},"Sunday","9am","TBD","TBD","Sheridan","CO",80110,"YES"]
[{"$f":"ELIZABETH!A11","v":"2026-06-14"},{"$f":"ELIZABETH!B11","v":"Sunday"},{"$f":"ELIZABETH!C11","v":"1pm"},{"$f":"ELIZABETH!D11","v":"American Legion Post 82"},{"$f":"ELIZABETH!E11","v":"228 S Banner St"},{"$f":"ELIZABETH!F11","v":"Elizabeth"},{"$f":"ELIZABETH!G11","v":"CO"},{"$f":"ELIZABETH!H11","v":80107},{"$f":"ELIZABETH!I11","v":"YES"}]
[{"$f":"GREELEY!A8:I8","v":"2026-06-27"},"Saturday","9.30am","Weld ARC w/Patriot VE Team","361 71st Ave","Greeley","CO",80634,"YES"]
[{"$f":"CENTENNIAL!A12:I12","v":"2026-06-29"},"Monday","7pm","Able Shepherd","7152 S Tuscon Way","Centennial","CO",80118,"NO"]
[{"$f":"'DENVER-MASONIC LODGE'!A12:I12","v":"2026-07-12"},"Sunday","9am","TBD","TBD","Sheridan","CO",80110,"YES"]
[{"$f":"ELIZABETH!A12","v":"2026-07-19"},{"$f":"ELIZABETH!B12","v":"Sunday"},{"$f":"ELIZABETH!C12","v":"1pm"},{"$f":"ELIZABETH!D12","v":"American Legion Post 82"},{"$f":"ELIZABETH!E12","v":"228 S Banner St"},{"$f":"ELIZABETH!F12","v":"Elizabeth"},{"$f":"ELIZABETH!G12","v":"CO"},{"$f":"ELIZABETH!H12","v":80107},{"$f":"ELIZABETH!I12","v":"YES"}]
[{"$f":"LONGMONT!A11","v":"2026-07-25"},{"$f":"LONGMONT!B11","v":"Saturday"},{"$f":"LONGMONT!C11","v":"9am"},{"$f":"LONGMONT!D11","v":"Clover Building, Boulder Co Fairgrounds, Clover Building w/Longmont ARC"},{"$f":"LONGMONT!E11","v":"9595 Nelson Rd"},{"$f":"LONGMONT!F11","v":"Longmont"},{"$f":"LONGMONT!G11","v":"CO"},{"$f":"LONGMONT!H11","v":80501},{"$f":"LONGMONT!I11","v":"YES"}]
[{"$f":"CENTENNIAL!A13:I13","v":"2026-07-27"},"Monday","7pm","Able Shepherd","7153 S Tuscon Way","Centennial","CO",80119,"NO"]
[{"$f":"'DENVER-MASONIC LODGE'!A13:I13","v":"2026-08-09"},"Sunday","9am","TBD","TBD","Sheridan","CO",80110,"YES"]
[{"$f":"ELIZABETH!A13","v":"2026-08-16"},{"$f":"ELIZABETH!B13","v":"Sunday"},{"$f":"ELIZABETH!C13","v":"1pm"},{"$f":"ELIZABETH!D13","v":"American Legion Post 82"},{"$f":"ELIZABETH!E13","v":"228 S Banner St"},{"$f":"ELIZABETH!F13","v":"Elizabeth"},{"$f":"ELIZABETH!G13","v":"CO"},{"$f":"ELIZABETH!H13","v":80107},{"$f":"ELIZABETH!I13","v":"YES"}]
[{"$f":"GREELEY!A9:I9","v":"2026-08-22"},"Saturday","9.30am","Weld ARC w/Patriot VE Team","361 71st Ave","Greeley","CO",80634,"YES"]
[{"$f":"CENTENNIAL!A14:I14","v":"2026-08-31"},"Monday","7pm","Able Shepherd","7154 S Tuscon Way","Centennial","CO",80120,"NO"]
[{"$f":"'DENVER-MASONIC LODGE'!A14:I14","v":"2026-09-13"},"Sunday","9am","TBD","TBD","Sheridan","CO",80110,"YES"]
[{"$f":"ELIZABETH!A14","v":"2026-09-20"},{"$f":"ELIZABETH!B14","v":"Sunday"},{"$f":"ELIZABETH!C14","v":"1pm"},{"$f":"ELIZABETH!D14","v":"American Legion Post 82"},{"$f":"ELIZABETH!E14","v":"228 S Banner St"},{"$f":"ELIZABETH!F14","v":"Elizabeth"},{"$f":"ELIZABETH!G14","v":"CO"},{"$f":"ELIZABETH!H14","v":80107},{"$f":"ELIZABETH!I14","v":"YES"}]
[{"$f":"LONGMONT!A12","v":"2026-09-26"},{"$f":"LONGMONT!B12","v":"Saturday"},{"$f":"LONGMONT!C12","v":"9am"},{"$f":"LONGMONT!D12","v":"Clover Building, Boulder Co Fairgrounds, Clover Building w/Longmont ARC"},{"$f":"LONGMONT!E12","v":"9595 Nelson Rd"},{"$f":"LONGMONT!F12","v":"Longmont"},{"$f":"LONGMONT!G12","v":"CO"},{"$f":"LONGMONT!H12","v":80501},{"$f":"LONGMONT!I12","v":"YES"}]
[{"$f":"CENTENNIAL!A15:I15","v":"2026-09-28"},"Monday","7pm","Able Shepherd","7155 S Tuscon Way","Centennial","CO",80121,"NO"]
[{"$f":"LONGMONT!A13","v":"2026-10-04"},{"$f":"LONGMONT!B13","v":"Sunday"},{"$f":"LONGMONT!C13","v":"10am"},{"$f":"LONGMONT!D13","v":"BARCFEST w/Boulder ARC @ Boulder Co Fairgrounds Exhibit Building"},{"$f":"LONGMONT!E13","v":"9595 Nelson Rd"},{"$f":"LONGMONT!F13","v":"Longmont"},{"$f":"LONGMONT!G13","v":"CO"},{"$f":"LONGMONT!H13","v":80501},{"$f":"LONGMONT!I13","v":"YES"}]
[{"$f":"'DENVER-MASONIC LODGE'!A15:I15","v":"2026-10-11"},"Sunday","9am","TBD","TBD","Sheridan","CO",80110,"YES"]
[{"$f":"ELIZABETH!A15","v":"2026-10-18"},{"$f":"ELIZABETH!B15","v":"Sunday"},{"$f":"ELIZABETH!C15","v":"1pm"},{"$f":"ELIZABETH!D15","v":"American Legion Post 82"},{"$f":"ELIZABETH!E15","v":"228 S Banner St"},{"$f":"ELIZABETH!F15","v":"Elizabeth"},{"$f":"ELIZABETH!G15","v":"CO"},{"$f":"ELIZABETH!H15","v":80107},{"$f":"ELIZABETH!I15","v":"YES"}]
[{"$f":"CENTENNIAL!A16:I16","v":"2026-10-19"},"Monday","7pm","Able Shepherd","7156 S Tuscon Way","Centennial","CO",80122,"NO"]
[{"$f":"GREELEY!A10:I10","v":"2026-10-24"},"Saturday","9.30am","Weld ARC w/Patriot VE Team","361 71st Ave","Greeley","CO",80634,"YES"]
[{"$f":"'DENVER-MASONIC LODGE'!A16:I16","v":"2026-11-08"},"Sunday","9am","TBD","TBD","Sheridan","CO",80110,"YES"]
[{"$f":"LONGMONT!A14","v":"2026-11-14"},{"$f":"LONGMONT!B14","v":"Saturday"},{"$f":"LONGMONT!C14","v":"9am"},{"$f":"LONGMONT!D14","v":"Clover Building, Boulder Co Fairgrounds, Clover Building w/Longmont ARC"},{"$f":"LONGMONT!E14","v":"9595 Nelson Rd"},{"$f":"LONGMONT!F14","v":"Longmont"},{"$f":"LONGMONT!G14","v":"CO"},{"$f":"LONGMONT!H14","v":80501},{"$f":"LONGMONT!I14","v":"YES"}]
[{"$f":"ELIZABETH!A16","v":"2026-11-15"},{"$f":"ELIZABETH!B16","v":"Sunday"},{"$f":"ELIZABETH!C16","v":"1pm"},{"$f":"ELIZABETH!D16","v":"American Legion Post 82"},{"$f":"ELIZABETH!E16","v":"228 S Banner St"},{"$f":"ELIZABETH!F16","v":"Elizabeth"},{"$f":"ELIZABETH!G16","v":"CO"},{"$f":"ELIZABETH!H16","v":80107},{"$f":"ELIZABETH!I16","v":"YES"}]
[{"$f":"CENTENNIAL!A17:I17","v":"2026-11-30"},"Monday","7pm","Able Shepherd","7157 S Tuscon Way","Centennial","CO",80123,"NO"]
[{"$f":"'DENVER-MASONIC LODGE'!A17:I17","v":"2026-12-06"},"Sunday","9am","TBD","TBD","Sheridan","CO",80110,"YES"]
[{"$f":"CENTENNIAL!A18:I18","v":"2026-12-14"},"Monday","7pm","Able Shepherd","7157 S Tuscon Way","Centennial","CO",80123,"NO"]
[{"$f":"GREELEY!A11:I11","v":"2026-12-19"},"Saturday","9.30am","Weld ARC w/Patriot VE Team","361 71st Ave","Greeley","CO",80634,"YES"]
[{"$f":"ELIZABETH!A17","v":"2026-12-20"},{"$f":"ELIZABETH!B17","v":"Sunday"},{"$f":"ELIZABETH!C17","v":"1pm"},{"$f":"ELIZABETH!D17","v":"American Legion Post 82"},{"$f":"ELIZABETH!E17","v":"228 S Banner St"},{"$f":"ELIZABETH!F17","v":"Elizabeth"},{"$f":"ELIZABETH!G17","v":"CO"},{"$f":"ELIZABETH!H17","v":80107},{"$f":"ELIZABETH!I17","v":"YES"}]

{"sheet":"DENVER-MASONIC LODGE","index":1,"n_rows":18,"n_cols":9,"rows_kept":18,"cut":false,"hidden":false,"merged":[]}
["VEC:","Laurel"]
["Contact:","Nick Meacher, AA0NM, PatriotVETeam@gmail.com",null,null,"717-965-5187"]
["Patriot VE Team"]
[null,"Sheridan CO"]
[]
["DATE","DAY","TIME","LOCATION","STREET","CITY","STATE","ZIP","WALK-IN"]
["2026-01-04",{"$f":"TEXT(A7,\"DDDD\")","v":"Sunday"},"9am","Denver South Masonic Lodge","350 S Broadway ","Denver","CO",80209,"YES"]
["2026-03-01","Sunday","9am","TBD","TBD","Sheridan","CO",80110,"YES"]
["2026-04-12","Sunday","9am","TBD","TBD","Sheridan","CO",80110,"YES"]
["2026-05-03","Sunday","9am","TBD","TBD","Sheridan","CO",80110,"YES"]
["2026-06-07","Sunday","9am","TBD","TBD","Sheridan","CO",80110,"YES"]
["2026-07-12","Sunday","9am","TBD","TBD","Sheridan","CO",80110,"YES"]
["2026-08-09","Sunday","9am","TBD","TBD","Sheridan","CO",80110,"YES"]
["2026-09-13","Sunday","9am","TBD","TBD","Sheridan","CO",80110,"YES"]
["2026-10-11","Sunday","9am","TBD","TBD","Sheridan","CO",80110,"YES"]
["2026-11-08",{"$f":"TEXT(A16,\"DDDD\")","v":"Sunday"},"9am","TBD","TBD","Sheridan","CO",80110,"YES"]
["2026-12-06","Sunday","9am","TBD","TBD","Sheridan","CO",80110,"YES"]
[{"$f":"COUNT(A7:A17)","v":11}]

{"sheet":"DENVER-CRRG","index":2,"n_rows":18,"n_cols":9,"rows_kept":18,"cut":false,"hidden":false,"merged":[[2,0,2,3]]}
["VEC:","Laurel"]
["Contact:","Nick Meacher, AA0NM, PatriotVETeam@gmail.com",null,null,"717-965-5187"]
["Castle Rock RepeaterGroup w/ Patriot VE Team at DenHac building"]
[]
["DATE","DAY","TIME","LOCATION","STREET","CITY","STATE","ZIP","WALK-IN"]
["2025-01-09",{"$f":"TEXT(A6,\"DDDD\")","v":"Thursday"},"6.30pm","DenHac /CARBBN w/Patriot VE Team","700 Kalamath St","Denver","CO",80204,"NO"]
["2025-02-06","Thursday","6.30pm","DenHac /CARBBN w/Patriot VE Team","700 Kalamath St","Denver","CO",80204,"NO"]
["2025-03-06","Thursday","6.30pm","DenHac /CARBBN w/Patriot VE Team","700 Kalamath St","Denver","CO",80204,"NO"]
["2025-04-03","Thursday","6.30pm","DenHac /CARBBN w/Patriot VE Team","700 Kalamath St","Denver","CO",80204,"NO"]
["2025-05-01","Thursday","6.30pm","DenHac /CARBBN w/Patriot VE Team","700 Kalamath St","Denver","CO",80204,"NO"]
["2025-06-05","Thursday","6.30pm","DenHac /CARBBN w/Patriot VE Team","700 Kalamath St","Denver","CO",80204,"NO"]
["2025-07-10","Thursday","6.30pm","DenHac /CARBBN w/Patriot VE Team","700 Kalamath St","Denver","CO",80204,"NO"]
["2025-08-07","Thursday","6.30pm","DenHac /CARBBN w/Patriot VE Team","700 Kalamath St","Denver","CO",80204,"NO"]
["2025-09-04","Thursday","6.30pm","DenHac /CARBBN w/Patriot VE Team","700 Kalamath St","Denver","CO",80204,"NO"]
["2025-10-02","Thursday","6.30pm","DenHac /CARBBN w/Patriot VE Team","700 Kalamath St","Denver","CO",80204,"NO"]
["2025-11-06",{"$f":"TEXT(A16,\"DDDD\")","v":"Thursday"},"6.30pm","DenHac /CARBBN w/Patriot VE Team","700 Kalamath St","Denver","CO",80204,"NO"]
["2025-12-04","Thursday","6.30pm","DenHac /CARBBN w/Patriot VE Team","700 Kalamath St","Denver","CO",80204,"NO"]
[{"$f":"COUNT(A6:A17)","v":12}]

{"sheet":"ELIZABETH","index":3,"n_rows":18,"n_cols":9,"rows_kept":18,"cut":false,"hidden":false,"merged":[]}
["VEC:","Laurel"]
["Contact:","Nick Meacher, AA0NM, PatriotVETeam@gmail.com",null,null,"717-965-5187"]
[null,"Patriot VE Team"]
[null,"American Legion Post 82, 228 S Banner St., Elizabeth, CO 80107"]
[]
["DATE","DAY","TIME","LOCATION","STREET","CITY","STATE","ZIP","WALK-IN"]
["2026-02-15",{"$f":"TEXT(A7,\"DDDD\")","v":"Sunday"},"1pm","American Legion Post 82","228 S Banner St","Elizabeth","CO",80107,"YES"]
["2026-03-15","Sunday","1pm","American Legion Post 82","228 S Banner St","Elizabeth","CO",80107,"YES"]
["2026-04-19","Sunday","1pm","American Legion Post 82","228 S Banner St","Elizabeth","CO",80107,"YES"]
["2026-05-17","Sunday","1pm","American Legion Post 82","228 S Banner St","Elizabeth","CO",80107,"YES"]
["2026-06-14","Sunday","1pm","American Legion Post 82","228 S Banner St","Elizabeth","CO",80107,"YES"]
["2026-07-19","Sunday","1pm","American Legion Post 82","228 S Banner St","Elizabeth","CO",80107,"YES"]
["2026-08-16","Sunday","1pm","American Legion Post 82","228 S Banner St","Elizabeth","CO",80107,"YES"]
["2026-09-20","Sunday","1pm","American Legion Post 82","228 S Banner St","Elizabeth","CO",80107,"YES"]
["2026-10-18","Sunday","1pm","American Legion Post 82","228 S Banner St","Elizabeth","CO",80107,"YES"]
["2026-11-15","Sunday","1pm","American Legion Post 82","228 S Banner St","Elizabeth","CO",80107,"YES"]
["2026-12-20","Sunday","1pm","American Legion Post 82","228 S Banner St","Elizabeth","CO",80107,"YES"]
[{"$f":"COUNT(A7:A17)","v":11}]

{"sheet":"CENTENNIAL","index":4,"n_rows":19,"n_cols":9,"rows_kept":19,"cut":false,"hidden":false,"merged":[]}
["VEC:","Laurel"]
["Contact:","Nick Meacher, AA0NM, PatriotVETeam@gmail.com",null,null,"717-965-5187"]
[null,"7146 S Tuscon Way, (behind Cablenet building)"]
[]
[]
["DATE","DAY","TIME","LOCATION","STREET","CITY","STATE","ZIP","WALK-IN"]
["2026-01-26",{"$f":"TEXT(A7,\"DDDD\")","v":"Monday"},"7pm","Able Shepherd","7147 S Tuscon Way","Centennial","CO",80113,"NO"]
["2026-02-23","Monday","7pm","Able Shepherd","7148 S Tuscon Way","Centennial","CO",80114,"NO"]
["2026-03-30","Monday","7pm","Able Shepherd","7149 S Tuscon Way","Centennial","CO",80115,"NO"]
["2026-04-27","Monday","7pm","Able Shepherd","7150 S Tuscon Way","Centennial","CO",80116,"NO"]
["2026-05-18","Monday","7pm","Able Shepherd","7151 S Tuscon Way","Centennial","CO",80117,"NO"]
["2026-06-29","Monday","7pm","Able Shepherd","7152 S Tuscon Way","Centennial","CO",80118,"NO"]
["2026-07-27","Monday","7pm","Able Shepherd","7153 S Tuscon Way","Centennial","CO",80119,"NO"]
["2026-08-31","Monday","7pm","Able Shepherd","7154 S Tuscon Way","Centennial","CO",80120,"NO"]
["2026-09-28","Monday","7pm","Able Shepherd","7155 S Tuscon Way","Centennial","CO",80121,"NO"]
["2026-10-19","Monday","7pm","Able Shepherd","7156 S Tuscon Way","Centennial","CO",80122,"NO"]
["2026-11-30",{"$f":"TEXT(A17,\"DDDD\")","v":"Monday"},"7pm","Able Shepherd","7157 S Tuscon Way","Centennial","CO",80123,"NO"]
["2026-12-14",{"$f":"TEXT(A18,\"DDDD\")","v":"Monday"},"7pm","Able Shepherd","7157 S Tuscon Way","Centennial","CO",80123,"NO"]
[{"$f":"COUNT(A7:A18)","v":12}]

{"sheet":"GREELEY","index":5,"n_rows":12,"n_cols":9,"rows_kept":12,"cut":false,"hidden":false,"merged":[]}
["VEC:","Laurel"]
["Contact:","Nick Meacher, AA0NM, PatriotVETeam@gmail.com",null,null,"717-965-5187"]
["Weld Amateur Radio Club w/ Patriot VE Team"]
[]
["DATE","DAY","TIME","LOCATION","STREET","CITY","STATE","ZIP","WALK-IN"]
["2026-02-28",{"$f":"TEXT(A6,\"DDDD\")","v":"Saturday"},"9.30am","Weld ARC w/Patriot VE Team","361 71st Ave","Greeley","CO",80634,"YES"]
["2026-04-25",{"$f":"TEXT(A7,\"DDDD\")","v":"Saturday"},"9.30am","Weld ARC w/Patriot VE Team","361 71st Ave","Greeley","CO",80634,"YES"]
["2026-06-27","Saturday","9.30am","Weld ARC w/Patriot VE Team","361 71st Ave","Greeley","CO",80634,"YES"]
["2026-08-22",{"$f":"TEXT(A9,\"DDDD\")","v":"Saturday"},"9.30am","Weld ARC w/Patriot VE Team","361 71st Ave","Greeley","CO",80634,"YES"]
["2026-10-24",{"$f":"TEXT(A10,\"DDDD\")","v":"Saturday"},"9.30am","Weld ARC w/Patriot VE Team","361 71st Ave","Greeley","CO",80634,"YES"]
["2026-12-19","Saturday","9.30am","Weld ARC w/Patriot VE Team","361 71st Ave","Greeley","CO",80634,"YES"]
[{"$f":"COUNT(A6:A11)","v":6}]

{"sheet":"LONGMONT","index":6,"n_rows":15,"n_cols":9,"rows_kept":15,"cut":false,"hidden":false,"merged":[]}
["VEC:","Laurel"]
["Contact:","Nick Meacher, AA0NM, PatriotVETeam@gmail.com",null,null,"717-965-5187"]
["Longmont Amateur Radio Club w/ Patriot VE Team"]
[null,"Clover Building, Boulder Co Fairgrounds, 9595 Nelson Rd., Longmont, CO 80501"]
[]
["DATE","DAY","TIME","LOCATION","STREET","CITY","STATE","ZIP","WALK-IN"]
["2026-01-24",{"$f":"TEXT(A7,\"DDDD\")","v":"Saturday"},"9am","Clover Building, Boulder Co Fairgrounds, Clover Building w/Longmont ARC","9595 Nelson Rd","Longmont","CO",80501,"YES"]
["2026-03-28","Saturday","9am","Clover Building, Boulder Co Fairgrounds, Clover Building w/Longmont ARC","9595 Nelson Rd","Longmont","CO",80501,"YES"]
["2026-04-04","Saturday","10am","LARCFEST, Boulder Co Fairgrounds","9595 Nelson Rd","Longmont","CO",80501,"YES"]
["2026-05-23","Saturday","9am","Clover Building, Boulder Co Fairgrounds, Clover Building w/Longmont ARC","9595 Nelson Rd","Longmont","CO",80501,"YES"]
["2026-07-25","Saturday","9am","Clover Building, Boulder Co Fairgrounds, Clover Building w/Longmont ARC","9595 Nelson Rd","Longmont","CO",80501,"YES"]
["2026-09-26","Saturday","9am","Clover Building, Boulder Co Fairgrounds, Clover Building w/Longmont ARC","9595 Nelson Rd","Longmont","CO",80501,"YES"]
["2026-10-04","Sunday","10am","BARCFEST w/Boulder ARC @ Boulder Co Fairgrounds Exhibit Building","9595 Nelson Rd","Longmont","CO",80501,"YES"]
["2026-11-14",{"$f":"TEXT(A14,\"DDDD\")","v":"Saturday"},"9am","Clover Building, Boulder Co Fairgrounds, Clover Building w/Longmont ARC","9595 Nelson Rd","Longmont","CO",80501,"YES"]
[{"$f":"COUNT(A7:A14)","v":8}]